{"text_format":"1","workbook":"xlsx","n_sheets":2,"sheets":["návrh rozpočtu na zasedání","List1"],"not_rendered":{"charts":0,"images":0,"macros":0,"external_links":0,"defined_names":0,"comments":1,"pivot_tables":0},"unopened":[],"bounds":{"document_bytes":16777216,"sheet_cells":100000,"rows_first":2000,"rows_last":500,"rows_between":2000,"halvings":0,"cell_chars":16384,"cell_head_chars":4096},"cells_cut":0,"cells_raw":0,"read":"whole","date_system":"1900"}

{"sheet":"návrh rozpočtu na zasedání","index":0,"n_rows":30,"n_cols":9,"rows_kept":30,"cut":false,"hidden":false,"merged":[[20,0,20,2],[28,0,28,1],[16,0,16,2],[9,0,9,2],[0,0,0,7],[3,0,3,7],[1,0,1,7],[2,0,2,7],[22,0,22,8],[24,0,24,8]]}
["Svazek obcí Brada",null,null,null,null,null,null,null,"IČO: 75126001"]
["dobrovolný svazek obcí"]
["Jinolice 39, 506 01 Jinolice"]
["SCHVÁLENÝ  ROZPOČET NA ROK 2025 "]
["Paragraf","Položka","Příjmy (v Kč)","Schválený rozpočet 2024","RO 1","RO 2","RO 3","Očekávané plnění 2024","Návrh rozpočtu na rok 2025"]
["xxxx",4116,"Ostatní neinvestiční přijaté transfery ze stát. rozpočtu",0,0,0,0,{"$f":"SUM(D6:G6)","v":0},0]
[4121,4121,"Neinvestiční přijaté transfery od obcí",22768,41984,0,0,64752,20420]
[4122,4122,"Neinvestiční přijaté transfery od krajů",0,53000,0,0,53000,0]
[6310,null,"Obecné příjmy a výdaje z finančních operací",0,0,0,0,{"$f":"SUM(D9:G9)","v":0},0]
["PŘÍJMY CELKEM",null,null,{"$f":"SUM(D6:D9)","v":22768},94984,0,0,117752,20420]
[]
["Paragraf","Položka","Výdaje (v Kč)","Schválený rozpočet 2024","RO 1","RO 2","RO 3","Očekávané plnění 2024","Návrh rozpočtu na rok 2025"]
[3639,null,"Komunální služby a územní rozvoj jinde",30750,94984,0,0,125734,33890]
[]
[]
[6310,5163,"služby peněžních ústavů",1700,0,0,0,1700,1320]
["VÝDAJE CELKEM",null,null,{"$f":"SUM(D13:D16)","v":32450},94984,0,0,127434,35210]
[]
["Paragraf","Položka","Financování (v Kč)","Schválený rozpočet 2024","RO 1","RO 2","RO 3","Očekávané plnění 2024","Návrh rozpočtu na rok 2025"]
["8XXX",null,"Financování",{"$f":"SUM(D17-D10)","v":9682},0,0,0,9682,14790]
["FINANCOVÁNÍ CELKEM",null,null,{"$f":"SUM(D20:D20)","v":9682},{"$f":"SUM(E20:E20)","v":0},{"$f":"SUM(F20:F20)","v":0},{"$f":"SUM(G20:G20)","v":0},{"$f":"SUM(H20:H20)","v":9682},14790]
[]
["Rozpočet je navržen jako schodkový s tím, že bude zapojen zůstatek z minulého roku. Rozpočet je ve výši příjmů Kč 20 420,- a výdajů Kč 35210,--Kč.Financování je ve výši Kč 14790,-.  Závazný ukazatel se určuje objemem paragrafu. Připomínky k návrhu rozpočtu mohou občané členských obcí svazku uplatnit písemně ve lhůtě do 19.11. 2024 nebo ústně na jednání shromáždění starostů Svazku obcí Brada."]
[]
["Zveřejněno současně na elektronické úřední desce."]
[]
["vyvěšeno: ","2019-11-15","2024-11-20"]
[]
["sejmuto: ",null,null,null,null,null,null,"Stanislav Kozák"]
[null,null,null,null,null,null,null,"předseda"]

{"sheet":"List1","index":1,"n_rows":0,"n_cols":0,"rows_kept":0,"cut":false,"hidden":false,"merged":[]}